bitfinex-derivatives/quotes_BNBF0:USTF0_20250709
["timestamp","ask_amount","ask_price","bid_price","bid_amount"]
[1752087374647,3.38254203,665.82,665.19,1.53944462]
[1752087374951,3.38254203,665.83,665.2,1.53944462]
[1752087375149,3.38254203,665.83,665.21,1.53944462]
[1752087375449,3.38254203,665.84,665.22,1.53944462]
[1752087375651,3.38254203,665.84,665.23,1.53944462]
[1752087375854,3.38254203,665.84,665.24,1.53944462]
[1752087376049,3.38254203,665.84,665.25,1.53944462]
[1752087376351,3.38254203,665.84,665.26,1.53944462]
[1752087376553,3.38254203,665.84,665.27,1.53944462]
[1752087376854,3.38254203,665.84,665.28,1.53944462]
[1752087377149,3.38254203,665.85,665.13,2.415]
[1752087377351,3.38254203,665.85,665.14,1.53926786]
[1752087377549,3.38254203,665.85,665.15,1.53926786]
[1752087377754,3.38254203,665.85,665.16,1.53926786]
[1752087378053,3.38254203,665.85,665.17,1.53926786]
[1752087378253,3.38254203,665.85,665.18,1.53926786]
[1752087378550,3.38254203,665.85,665.19,1.53926786]
[1752087378749,3.38254203,665.85,665.2,1.53926786]
[1752087378953,3.38254203,665.85,665.21,1.53926786]
[1752087379149,3.38254203,665.85,665.22,1.53926786]
[1752087379355,3.38254203,665.85,665.06,1.68485991]
[1752087379356,3.38254203,665.81,665.23,1.53926786]
[1752087379557,3.38254203,665.81,665.24,1.53926786]
[1752087379751,3.38254203,665.81,665.03,1.68485991]
[1752087380053,3.38254203,665.81,665.04,1.53919953]
[1752087380253,3.38254203,665.81,665.05,1.53919953]
[1752087380455,3.38254203,665.81,665.06,1.53919953]
[1752087380654,3.38254203,665.81,665.07,1.53919953]
[1752087380856,3.38254203,665.81,665.08,1.53919953]
[1752087381057,3.38254203,665.81,665.09,1.53919953]
[1752087381254,3.38254203,665.81,665.1,1.53919953]
[1752087381458,3.38254203,665.81,665.11,1.53919953]
[1752087381656,3.38254203,665.81,665.12,1.53919953]
[1752087381856,3.38254203,665.81,665.13,1.53919953]
[1752087382061,0.26150077,665.69,665.14,1.53919953]
[1752087382356,0.26150077,665.69,665.15,1.53919953]
[1752087382555,0.26150077,665.69,665.16,1.53919953]
[1752087382757,0.26150077,665.69,665.17,1.53919953]
[1752087382960,0.26150077,665.69,665.18,1.53919953]
[1752087383159,0.26150077,665.69,665.19,1.53919953]
[1752087383360,0.26150077,665.69,665.2,1.53919953]
[1752087383558,0.26150077,665.69,665.21,1.53919953]
[1752087383759,0.26150077,665.69,665.22,1.53919953]
[1752087383960,0.26150077,665.69,665.23,1.53919953]
[1752087384160,0.26150077,665.69,665.24,1.53919953]
[1752087384359,0.26150077,665.69,665.1,1.725]
[1752087384562,0.26150077,665.69,665.11,1.53956928]
[1752087384762,0.26150077,665.69,665.12,1.53956928]
[1752087384958,0.26150077,665.69,665.13,1.53956928]
[1752087385159,0.26150077,665.69,665.14,1.53956928]
[1752087385358,0.26150077,665.69,665.15,1.53956928]
[1752087385559,0.26150077,665.69,665.16,1.53956928]
[1752087385864,0.26150077,665.69,665.17,1.53956928]
[1752087386163,0.26150077,665.69,665.18,1.53956928]
[1752087386363,0.26150077,665.69,665.19,1.53956928]
[1752087386561,0.26150077,665.69,665.2,1.53956928]
[1752087386764,0.26150077,665.69,665.21,1.53956928]
[1752087386965,0.26150077,665.69,665.1,1.725]
[1752087386966,0.26150077,665.69,665.22,1.53956928]
[1752087387262,0.26150077,665.69,665.23,1.53956928]
[1752087387463,0.26150077,665.69,665.24,1.53956928]
[1752087387661,0.26150077,665.69,665.1,1.725]
[1752087387859,0.26150077,665.69,665.11,1.53972044]
[1752087388063,3.38254203,665.83,665.12,1.53972044]
[1752087388261,3.38254203,665.83,665.13,1.53972044]
[1752087388463,3.38254203,665.83,665.14,1.53972044]
[1752087388663,3.38254203,665.82,665.15,1.53972044]
[1752087388964,3.38254203,665.82,665.16,1.53972044]
[1752087389163,3.38254203,665.82,665.17,1.53972044]
[1752087389362,3.38254203,665.89,665.18,1.53972044]
[1752087389566,3.38254203,665.89,665.19,1.53972044]
[1752087389867,3.38254203,665.92,665.2,1.53972044]
[1752087390067,3.38254203,665.92,665.21,1.53972044]
[1752087390265,3.38254203,665.92,665.22,1.53972044]
[1752087390467,3.38254203,665.93,665.23,1.53972044]
[1752087390667,3.38254203,665.93,665.24,1.53972044]
[1752087390864,3.38254203,665.93,665.25,1.53972044]
[1752087391164,3.38254203,665.93,665.26,1.53972044]
[1752087391367,3.38254203,665.93,665.27,1.53972044]
[1752087391565,3.38254203,665.93,665.28,1.53972044]
[1752087391764,3.38254203,665.93,665.29,1.53972044]
[1752087391969,3.38254203,665.93,665.3,1.53972044]
[1752087392163,3.38254203,665.93,665.31,1.53972044]
[1752087392368,3.38254203,665.93,665.1,1.725]
[1752087392564,0.2614713,665.78,665.11,1.53858082]
[1752087392766,0.2614713,665.78,665.12,1.53858082]
[1752087392965,0.2614713,665.78,665.13,1.53858082]
[1752087393164,0.2614713,665.78,665.14,1.53858082]
[1752087393366,0.2614713,665.78,665.15,1.53858082]
[1752087393566,0.2614713,665.78,665.16,1.53858082]
[1752087393765,0.2614713,665.78,665.17,1.53858082]
[1752087393969,0.2614713,665.78,665.18,1.53858082]
[1752087394270,0.2614713,665.78,665.19,1.53858082]
[1752087394472,0.2614713,665.78,665.2,1.53858082]
[1752087394673,0.2614713,665.78,665.21,1.53858082]
[1752087394968,0.2614713,665.78,665.22,1.53858082]
[1752087395171,0.2614713,665.78,665.23,1.53858082]
[1752087395370,0.2614713,665.78,665.24,1.53858082]
[1752087395572,0.2614713,665.78,665.25,1.53858082]
[1752087395770,0.2614713,665.78,665.26,1.53858082]
[1752087395969,0.2614713,665.78,665.27,1.53858082]
[1752087396276,0.2614713,665.78,665.28,1.53858082]
[1752087396574,0.2614713,665.78,665.29,1.53858082]
[1752087396775,0.2614713,665.78,665.3,1.53858082]
[1752087396969,0.2614713,665.78,665.31,1.53858082]
[1752087397177,0.2614713,665.78,665.32,1.53858082]
[1752087397376,0.2614713,665.78,665.1,1.725]
[1752087397672,0.2614713,665.78,665.11,1.53894634]
[1752087397873,0.2614713,665.78,665.12,1.53894634]
[1752087398075,0.2614713,665.78,665.13,1.53894634]
[1752087398273,0.2614713,665.78,665.14,1.53894634]
[1752087398473,0.2614713,665.78,665.15,1.53894634]
[1752087398673,0.2614713,665.78,665.16,1.53894634]
[1752087398975,0.2614713,665.78,665.17,1.53894634]
[1752087399173,0.2614713,665.78,665.18,1.53894634]
[1752087399377,0.2614713,665.78,665.19,1.53894634]
[1752087399572,0.2614713,665.78,665.2,1.53894634]
[1752087399771,0.2614713,665.78,665.21,1.53894634]
[1752087399974,0.2614713,665.78,665.22,1.53894634]
[1752087400275,0.2614713,665.78,665.23,1.53894634]
[1752087400477,0.2614713,665.78,665.24,1.53894634]
[1752087400674,0.2614713,665.78,665.25,1.53894634]
[1752087400875,0.2614713,665.78,665.26,1.53894634]
[1752087401078,0.2614713,665.78,665.27,1.53894634]
[1752087401275,0.2614713,665.78,665.28,1.53894634]
[1752087401479,0.2614713,665.78,665.29,1.53894634]
[1752087401675,0.2614713,665.78,665.1,1.725]
[1752087401881,0.2614713,665.78,665.11,1.53895222]
[1752087402178,0.2614713,665.78,665.12,1.53895222]
[1752087402381,0.2614713,665.78,665.13,1.53895222]
[1752087402676,0.2614713,665.78,665.14,1.53895222]
[1752087402980,0.2614713,665.78,665.15,1.53895222]
[1752087403174,0.2614713,665.78,665.16,1.53895222]
[1752087403378,0.2614713,665.78,665.17,1.53895222]
[1752087403577,0.2614713,665.78,665.18,1.53895222]
[1752087403780,0.2614713,665.78,665.19,1.53895222]
[1752087404076,0.2614713,665.78,665.2,1.53895222]
[1752087404278,0.2614713,665.78,665.21,1.53895222]
[1752087404477,0.2614713,665.78,665.22,1.53895222]
[1752087404679,0.2614713,665.78,665.23,1.53895222]
[1752087404882,0.2614713,665.78,665.24,1.53895222]
[1752087405082,0.2614713,665.78,665.25,1.53895222]
[1752087405283,0.2614713,665.78,665.26,1.53895222]
[1752087405580,0.2614713,665.78,665.27,1.53895222]
[1752087405879,0.2614713,665.78,665.28,1.53895222]
[1752087406081,0.2614713,665.78,665.29,1.53895222]
[1752087406280,0.2614713,665.78,665.3,1.53895222]
[1752087406480,0.2614713,665.78,665.31,1.53895222]
[1752087406683,0.2614713,665.78,665.1,1.725]
[1752087406885,0.2614713,665.78,665.11,1.53968956]
[1752087407085,0.2614713,665.78,665.12,1.53968956]
[1752087407285,0.2614713,665.78,665.13,1.53968956]
[1752087407586,0.2614713,665.78,665.14,1.53970804]
[1752087407786,0.2614713,665.78,665.15,1.53970804]
[1752087407987,0.2614713,665.78,665.16,1.53970804]
[1752087408187,0.2614713,665.78,665.17,1.53970804]
[1752087408385,0.2614713,665.78,665.18,1.53970804]
[1752087408588,0.2614713,665.78,665.19,1.53970804]
[1752087408787,0.2614713,665.78,665.2,1.53970804]
[1752087409087,0.2614713,665.78,665.21,1.53970804]
[1752087409386,0.2614713,665.78,665.22,1.53970804]
[1752087409588,0.2614713,665.78,665.1,3.40649696]
[1752087409589,0.2614713,665.78,665.23,1.53970804]
[1752087409883,0.2614713,665.78,665.24,1.53970804]
[1752087410088,0.2614713,665.78,665.25,1.53970804]
[1752087410288,0.2614713,665.78,665.26,1.53970804]
[1752087410585,0.2614713,665.78,665.27,1.53970804]
[1752087410788,0.2614713,665.78,665.28,1.53970804]
[1752087410989,0.2614713,665.78,665.29,1.53970804]
[1752087411188,0.2614713,665.78,665.3,1.53970804]
[1752087411388,0.2614713,665.78,665.1,1.725]
[1752087411389,0.2614713,665.78,665.31,1.53970804]
[1752087411590,0.2614713,665.78,665.32,1.53970804]
[1752087411789,0.2614713,665.78,665.33,1.53970804]
[1752087411990,0.2614713,665.78,665.34,1.53970804]
[1752087412290,0.2614713,665.78,665.35,1.53970804]
[1752087412491,0.2614713,665.78,665.36,1.53970804]
[1752087412692,0.2614713,665.78,665.12,1.68149696]
[1752087412892,0.2614713,665.78,665.13,1.54123408]
[1752087413087,0.2614713,665.78,665.14,1.54123408]
[1752087413387,0.2614713,665.78,665.12,1.68149696]
[1752087413388,0.2614713,665.78,665.15,1.54123408]
[1752087413595,0.2614713,665.78,665.16,1.54123408]
[1752087413790,0.2614713,665.78,665.17,1.54123408]
[1752087413991,0.2614713,665.78,665.18,1.54123408]
[1752087414194,0.2614713,665.78,665.19,1.54123408]
[1752087414393,0.2614713,665.78,665.2,1.54123408]
[1752087414596,0.2614713,665.78,665.21,1.54123408]
[1752087414792,0.2614713,665.78,665.22,1.54123408]
[1752087414993,0.2614713,665.78,665.23,1.54123408]
[1752087415198,0.2614713,665.78,665.24,1.54123408]
[1752087415398,0.2614713,665.78,665.25,1.54123408]
[1752087415695,0.2614713,665.78,665.26,1.54123408]
[1752087415994,0.2614713,665.78,665.27,1.54123408]
[1752087416193,0.2614713,665.78,665.28,1.54123408]
[1752087416393,0.2614713,665.78,665.1,1.725]
[1752087416394,0.2614713,665.78,665.29,1.54123408]
[1752087416693,0.2614713,665.78,665.3,1.54123408]
[1752087416898,0.2614713,665.78,665.31,1.54123408]
[1752087417097,0.2614713,665.78,665.32,1.54123408]
[1752087417298,0.2614713,665.78,665.33,1.54123408]
[1752087417597,0.2614713,665.78,665.34,1.54123408]
[1752087417894,0.2614713,665.78,665.35,1.54123408]
[1752087418093,0.2614713,665.78,665.14,1.68149696]
[1752087418094,0.2614713,665.78,665.36,1.54123408]
[1752087418294,0.2614713,665.78,665.37,1.54123408]
[1752087418494,0.2614713,665.78,665.38,1.54123408]
[1752087418793,0.2614713,665.78,665.14,1.68149696]
[1752087418993,0.2614713,665.78,665.15,1.54233197]
[1752087419197,0.2614713,665.78,665.16,1.54233197]
[1752087419394,3.64401333,665.78,665.17,1.54233197]
[1752087419596,3.64401333,665.78,665.18,1.54233197]
[1752087419798,3.38254203,665.77,665.19,1.54233197]
[1752087419998,3.38254203,665.77,665.2,1.54233197]
[1752087420300,3.38254203,665.77,665.21,1.54233197]
[1752087420595,3.38254203,665.77,665.22,1.54233197]
[1752087420799,0.2614713,665.78,665.23,1.54233197]
[1752087420996,0.2614713,665.78,665.24,1.54233197]
[1752087421197,0.2614713,665.78,665.25,1.54233197]
[1752087421398,3.64401333,665.78,665.26,1.54233197]
[1752087421596,3.64401333,665.78,665.27,1.54233197]
[1752087421799,3.38254203,665.77,665.28,1.54233197]
[1752087422001,3.38254203,665.77,665.29,1.54233197]
[1752087422297,3.38254203,665.76,665.3,1.54233197]
[1752087422496,3.38254203,665.76,665.31,1.54233197]
[1752087422797,3.38254203,665.76,665.32,1.54233197]
[1752087423001,3.38254203,665.76,665.33,1.54233197]
[1752087423301,3.38254203,665.76,665.11,1.68149696]
[1752087423302,3.38254203,665.76,665.34,1.54233197]
[1752087423499,3.38254203,665.77,665.11,1.68149696]
[1752087423698,3.38254203,665.74,665.13,1.68149696]
[1752087423998,3.38254203,665.74,665.14,1.54248185]
[1752087424198,3.38254203,665.74,665.15,1.54248185]
[1752087424400,3.38254203,665.74,665.16,1.54248185]
[1752087424598,3.38254203,665.74,665.17,1.54248185]
[1752087424802,3.38254203,665.74,665.18,1.54248185]
[1752087425098,3.38254203,665.74,665.19,1.54248185]
[1752087425296,3.38254203,665.74,665.2,1.54248185]
[1752087425597,3.38254203,665.74,665.21,1.54248185]
[1752087425799,3.38254203,665.74,665.22,1.54248185]
[1752087425998,3.38254203,665.74,665.23,1.54248185]
[1752087426199,3.38254203,665.74,665.24,1.54248185]
[1752087426397,3.38254203,665.74,665.25,1.54248185]
[1752087426600,3.38254203,665.74,665.26,1.54248185]
[1752087426799,3.38254203,665.74,665.27,1.54248185]
[1752087427000,3.38254203,665.74,665.28,1.54248185]
[1752087427199,3.38254203,665.74,665.29,1.54248185]
[1752087427403,3.38254203,665.74,665.3,1.54248185]
[1752087427601,3.38254203,665.74,665.31,1.54248185]
[1752087427800,3.38254203,665.74,665.32,1.54248185]
[1752087428002,3.38254203,665.74,665.33,1.54248185]
[1752087428205,3.38254203,665.74,665.34,1.54248185]
[1752087428506,3.38254203,665.73,665.13,1.68149696]
[1752087428805,3.38254203,665.73,665.14,1.54241574]
[1752087429002,3.38254203,665.73,665.15,1.54241574]
[1752087429205,3.38254203,665.73,665.16,1.54241574]
[1752087429402,0.2614713,665.78,665.1,1.725]
[1752087429403,3.38254203,665.76,665.17,3.2239127]
[1752087429608,3.38254203,665.76,665.18,1.54241574]
[1752087429907,3.38254203,665.76,665.19,1.54241574]
[1752087430104,3.38254203,665.76,665.2,1.54241574]
[1752087430308,3.38254203,665.76,665.21,1.54241574]
[1752087430507,3.38254203,665.76,665.17,1.68149696]
[1752087430508,3.38254203,665.76,665.22,1.54241574]
[1752087430706,3.38254203,665.73,665.23,1.54241574]
[1752087431009,3.38254203,665.73,665.24,1.54241574]
[1752087431204,3.38254203,665.73,665.25,1.54241574]
[1752087431408,3.38254203,665.76,665.26,1.54241574]
[1752087431605,3.38254203,665.76,665.27,1.54241574]
[1752087431807,3.38254203,665.76,665.28,1.54241574]
[1752087432006,3.38254203,665.76,665.29,1.54241574]
[1752087432210,3.38254203,665.76,665.3,1.54241574]
[1752087432408,3.38254203,665.76,665.31,1.54241574]
[1752087432711,3.38254203,665.76,665.32,1.54241574]
[1752087432917,3.38254203,665.76,665.33,1.54241574]
[1752087433108,3.38254203,665.76,665.34,1.54241574]
[1752087433309,3.38254203,665.76,665.35,1.54241574]
[1752087433511,3.38254203,665.76,665.36,1.54241574]
[1752087433711,3.38254203,665.76,665.37,1.54241574]
[1752087433912,3.38254203,665.76,665.17,1.68149696]
[1752087434112,3.38254203,665.76,665.18,1.54235653]
[1752087434313,3.38254203,665.77,665.19,1.54235653]
[1752087434609,3.64401333,665.78,665.2,1.54235653]
[1752087434813,3.64401333,665.78,665.21,1.54235653]
[1752087435108,3.64401333,665.78,665.22,1.54235653]
[1752087435312,3.64401333,665.78,665.23,1.54235653]
[1752087435510,0.2614713,665.78,665.24,1.54235653]
[1752087435710,0.2614713,665.78,665.25,1.54235653]
[1752087435909,0.2614713,665.78,665.26,1.54235653]
[1752087436108,0.2614713,665.78,665.27,1.54235653]
[1752087436311,0.2614713,665.78,665.28,1.54235653]
[1752087436509,0.2614713,665.78,665.29,1.54235653]
[1752087436813,0.2614713,665.78,665.3,1.54235653]
[1752087437013,0.2614713,665.78,665.31,1.54235653]
[1752087437310,0.2614713,665.78,665.32,1.54235653]
[1752087437513,0.2614713,665.78,665.33,1.54235653]
[1752087437711,0.2614713,665.78,665.34,1.54235653]
[1752087438018,0.2614713,665.78,665.35,1.54235653]
[1752087438215,0.2614713,665.78,665.36,1.54235653]
[1752087438412,0.2614713,665.78,665.37,1.54235653]
[1752087438711,0.2614713,665.78,665.38,1.54235653]
[1752087438916,0.2614713,665.78,665.37,1.762]
[1752087439118,0.2614713,665.78,665.38,1.54232247]
[1752087439416,0.2614713,665.78,665.37,1.762]
[1752087441218,3.64401333,665.78,665.37,1.762]
[1752087443320,0.2614713,665.78,665.37,1.762]
[1752087444217,3.64401333,665.78,665.37,1.762]
[1752087444420,3.38254203,665.77,665.37,1.762]
[1752087445417,0.2614713,665.78,665.37,1.762]
[1752087446018,3.64401333,665.78,665.37,1.762]
[1752087446222,3.38254203,665.76,665.37,1.762]
[1752087447118,3.38254203,665.77,665.37,1.762]
[1752087449025,0.2614713,665.78,665.37,1.762]
[1752087449226,3.38254203,665.77,665.37,1.762]
[1752087449522,3.38254203,665.76,665.37,1.762]
[1752087450125,3.38254203,665.74,665.37,1.762]
[1752087450322,3.38254203,665.75,665.37,1.762]
[1752087450821,3.38254203,665.74,665.37,1.762]
[1752087451123,3.38254203,665.75,665.37,1.762]
[1752087455223,3.38254203,665.74,665.37,1.762]
[1752087456629,3.38254203,665.75,665.37,1.762]
[1752087457828,0.2614713,665.78,665.37,1.762]
[1752087457829,3.38254203,665.74,665.37,1.762]
[1752087458825,3.38254203,665.72,665.37,1.762]
[1752087460929,3.38254203,665.71,665.37,1.762]
[1752087461230,3.38254203,665.73,665.37,1.762]
[1752087462225,3.38254203,665.74,665.37,1.762]
[1752087462430,3.38254203,665.75,665.37,1.762]
[1752087463029,3.38254203,665.74,665.37,1.762]
[1752087463328,3.38254203,665.76,665.37,1.762]
[1752087464230,0.2614713,665.78,665.37,1.762]
[1752087466631,3.38254203,665.76,665.37,1.762]
[1752087467232,3.38254203,665.75,665.37,1.762]
[1752087467432,3.38254203,665.77,665.37,1.762]
[1752087467829,3.38254203,665.7,665.37,1.762]
[1752087468529,3.38254203,665.72,665.37,1.762]
[1752087468928,3.38254203,665.71,665.37,1.762]
[1752087469334,3.38254203,665.72,665.37,1.762]
[1752087469527,3.38254203,665.66,665.37,1.762]
[1752087469730,3.38254203,665.65,665.37,1.762]
[1752087470433,3.38254203,665.66,665.37,1.762]
[1752087471333,0.2614713,665.78,665.37,1.762]
[1752087471334,3.38254203,665.67,665.37,1.762]
[1752087472335,3.38254203,665.68,665.37,1.762]
[1752087473336,3.38254203,665.69,665.37,1.762]
[1752087474337,3.38254203,665.72,665.37,1.762]
[1752087475838,3.38254203,665.67,665.37,1.762]
[1752087476940,3.38254203,665.68,665.37,1.762]
[1752087477237,3.38254203,665.66,665.37,1.762]
[1752087478335,3.38254203,665.67,665.37,1.762]
[1752087478841,0.2614713,665.78,665.37,1.762]
[1752087488550,3.38254203,665.74,665.37,1.762]
[1752087489554,3.38254203,665.73,665.37,1.762]
[1752087489748,3.38254203,665.72,665.37,1.762]
[1752087490454,0.2614713,665.78,665.37,1.762]
[1752087491655,0.2614713,665.78,664.85,0.26151748]
[1752087491856,0.2614713,665.78,664.86,1.53601265]
[1752087492155,0.2614713,665.78,664.87,1.53601265]
[1752087492351,0.2614713,665.78,664.88,1.53601265]
[1752087492555,0.2614713,665.78,664.89,1.53601265]
[1752087492855,0.2614713,665.78,664.9,1.53601265]
[1752087493056,0.2614713,665.78,664.91,1.53598818]
[1752087493353,3.64401333,665.78,664.92,1.53598818]
[1752087493556,3.64401333,665.78,664.93,1.53598818]
[1752087493756,3.64401333,665.78,664.94,1.53598818]
[1752087493955,3.38254203,665.77,664.85,0.26151748]
[1752087494156,3.64401333,665.78,664.86,1.53590935]
[1752087494457,3.64401333,665.78,664.87,1.53590935]
[1752087494653,3.64401333,665.78,664.88,4.03090935]
[1752087494851,3.64401333,665.78,664.89,1.53590935]
[1752087495051,3.64401333,665.78,664.9,1.53590935]
[1752087495253,3.64401333,665.78,664.91,1.53590935]
[1752087495552,3.64401333,665.78,664.92,1.53590935]
[1752087495758,3.64401333,665.78,664.93,1.53590935]
[1752087495958,3.64401333,665.78,664.94,1.53590935]
[1752087496258,3.64401333,665.78,664.95,1.53596518]
[1752087496458,3.64401333,665.78,664.88,2.495]
[1752087496658,3.64401333,665.78,664.89,1.53596893]
[1752087496958,3.64401333,665.78,664.9,1.53596893]
[1752087497156,3.64401333,665.78,664.91,1.53596893]
[1752087497355,3.64401333,665.78,664.92,1.53596893]
[1752087497557,3.64401333,665.78,664.93,1.53596893]
[1752087497757,3.64401333,665.78,664.94,1.53596893]
[1752087497958,3.64401333,665.78,664.95,1.53596893]
[1752087498155,3.64401333,665.78,664.88,2.495]
[1752087498358,3.64401333,665.78,664.89,1.53601056]
[1752087498556,3.64401333,665.78,664.9,1.53601056]
[1752087498758,3.64401333,665.78,664.91,1.53601056]
[1752087498962,3.64401333,665.78,664.88,2.495]
[1752087498963,3.38254203,665.73,664.92,1.53601056]
[1752087499263,3.38254203,665.73,664.93,1.53601056]
[1752087499560,3.38254203,665.77,664.94,1.53601056]
[1752087499760,3.38254203,665.77,664.95,1.53601056]
[1752087499958,3.38254203,665.77,664.96,1.53601056]
[1752087500163,3.38254203,665.66,664.97,1.53601056]
[1752087500462,3.38254203,665.66,664.98,1.53601056]
[1752087500762,3.38254203,665.69,664.99,1.53601056]
[1752087501058,3.38254203,665.69,664.88,2.495]
[1752087501261,3.38254203,665.69,664.89,1.53627975]
[1752087501461,3.38254203,665.69,664.9,1.53627975]
[1752087501661,3.38254203,665.69,664.91,1.53627975]
[1752087501860,3.38254203,665.69,664.92,1.53627975]
[1752087502062,3.38254203,665.69,664.93,1.53636782]
[1752087502260,3.38254203,665.69,664.94,1.53636782]
[1752087502461,3.38254203,665.69,664.95,1.53636782]
[1752087502659,3.38254203,665.69,664.96,1.53636782]
[1752087502859,3.38254203,665.69,664.97,1.53636782]
[1752087503057,3.38254203,665.69,664.98,1.53636782]
[1752087503262,3.38254203,665.69,664.99,1.53636782]
[1752087503464,3.38254203,665.68,664.88,2.495]
[1752087503664,3.38254203,665.73,664.89,1.5366003]
[1752087503964,3.38254203,665.73,664.88,2.495]
[1752087503965,3.38254203,665.73,664.9,1.5366003]
[1752087504263,3.38254203,665.73,664.91,1.5366003]
[1752087504463,3.38254203,665.73,664.92,1.5366003]
[1752087504662,3.38254203,665.73,664.93,1.5366003]
[1752087504863,3.38254203,665.73,664.94,1.5366003]
[1752087505159,3.38254203,665.75,664.95,1.5366003]
[1752087505459,3.38254203,665.73,664.96,1.5366003]
[1752087505663,3.38254203,665.73,664.97,1.5366003]
[1752087505864,3.38254203,665.73,664.88,2.495]
[1752087505865,3.38254203,665.73,664.98,1.5366003]
[1752087506061,3.64401333,665.78,664.99,1.5366003]
[1752087506266,3.64401333,665.78,665.0,1.53697123]
[1752087506566,0.2614713,665.78,664.88,2.495]
[1752087506765,0.2614713,665.78,664.89,1.5370031]
[1752087506965,0.2614713,665.78,664.9,1.5370031]
[1752087507262,0.2614713,665.78,664.91,1.5370031]
[1752087507465,0.2614713,665.78,664.92,1.5370031]
[1752087507665,0.2614713,665.78,664.93,1.5370031]
[1752087507865,0.2614713,665.78,664.94,1.5370031]
[1752087508065,0.2614713,665.78,664.95,1.5370031]
[1752087508262,0.2614713,665.78,664.96,1.5370031]
[1752087508462,0.2614713,665.78,664.97,1.5370031]
[1752087508665,0.2614713,665.78,664.98,1.5370031]
[1752087508865,0.2614713,665.78,664.99,1.5370031]
[1752087509161,0.2614713,665.78,665.0,1.5370031]
[1752087509361,0.2614713,665.78,665.01,1.5370031]
[1752087509666,0.2614713,665.78,665.02,1.5370031]
[1752087509965,0.2614713,665.78,665.03,1.5370031]
[1752087510167,0.2614713,665.78,665.04,1.5370031]
[1752087510461,0.2614713,665.78,665.05,1.5370031]
[1752087510665,0.2614713,665.78,665.06,1.5370031]
[1752087510964,0.2614713,665.78,665.07,1.5370031]
[1752087511162,0.2614713,665.78,665.08,1.5370031]
[1752087511361,0.2614713,665.78,664.88,2.495]
[1752087511362,0.2614713,665.78,665.09,1.5370031]
[1752087511565,0.2614713,665.78,665.1,1.5370031]
[1752087511761,0.2614713,665.78,665.11,1.5370031]
[1752087511965,0.2614713,665.78,665.12,1.5370031]
[1752087512166,0.2614713,665.78,665.13,1.5370031]
[1752087512367,0.2614713,665.78,665.14,1.5370031]
[1752087512568,0.2614713,665.78,665.15,1.5370031]
[1752087512769,0.2614713,665.78,665.16,1.5370031]
[1752087513063,0.2614713,665.78,664.88,2.495]
[1752087513266,0.2614713,665.78,664.89,1.537042]
[1752087513467,0.2614713,665.78,664.9,1.537042]
[1752087513667,0.2614713,665.78,664.91,1.537042]
[1752087513866,0.2614713,665.78,664.92,1.537042]
[1752087514066,0.2614713,665.78,664.93,1.537042]
[1752087514272,0.2614713,665.78,664.94,1.537042]
[1752087514472,0.2614713,665.78,664.95,1.537042]
[1752087514670,0.2614713,665.78,664.96,1.537042]
[1752087514872,0.2614713,665.78,664.97,1.537042]
[1752087515171,0.2614713,665.78,664.98,1.537042]
[1752087515370,0.2614713,665.78,664.99,1.537042]
[1752087515671,0.2614713,665.78,665.0,1.537042]
[1752087515867,0.2614713,665.78,664.88,2.495]
[1752087515868,0.2614713,665.78,665.01,1.537042]
[1752087516172,0.2614713,665.78,665.02,1.537042]
[1752087516468,0.2614713,665.78,665.03,1.537042]
[1752087516668,0.2614713,665.78,665.04,1.537042]
[1752087516972,0.2614713,665.78,665.05,1.537042]
[1752087517169,0.2614713,665.78,664.88,2.495]
[1752087517170,0.2614713,665.78,665.06,1.537042]
[1752087517368,0.2614713,665.78,665.07,1.537042]
[1752087517568,0.2614713,665.78,665.08,1.537042]
[1752087517772,0.2614713,665.78,665.09,1.537042]
[1752087517971,0.2614713,665.78,665.1,1.537042]
[1752087518169,0.2614713,665.78,665.11,1.537042]
[1752087518374,0.2614713,665.78,665.12,1.537042]
[1752087518574,0.2614713,665.78,665.13,1.537042]
[1752087518771,0.2614713,665.78,665.14,1.537042]
[1752087519074,0.2614713,665.78,665.15,1.537042]
[1752087519271,0.2614713,665.78,665.16,1.537042]
[1752087519574,0.2614713,665.78,664.88,2.495]
[1752087519772,0.2614713,665.78,664.89,1.53767096]
[1752087519975,0.2614713,665.78,664.9,1.53767096]
[1752087520175,0.2614713,665.78,664.91,1.53767096]
[1752087520371,0.2614713,665.78,664.92,1.53767096]
[1752087520676,0.2614713,665.78,664.93,1.53767096]
[1752087520873,0.2614713,665.78,664.94,1.53767096]
[1752087521071,0.2614713,665.78,664.95,1.53767096]
[1752087521373,0.2614713,665.78,664.96,1.53767096]
[1752087521571,0.2614713,665.78,664.97,1.53767096]
[1752087521771,0.2614713,665.78,664.98,1.53767096]
[1752087521975,3.38254203,665.77,664.99,1.53767096]
[1752087522178,3.38254203,665.77,665.0,1.53767096]
[1752087522471,3.38254203,665.77,665.01,1.53767096]
[1752087522671,3.38254203,665.77,665.02,1.53767096]